Cogmind - Beta 16.1 @@@ ROGUE MODE // 2026.02.17 @ 14:44:41 Player: queen's_gambit Result: Destroyed by G-47 Trooper with Particle Gun Performance ------------- Evolutions (2) 1000 Regions Visited (3) 600 Robots Destroyed (35) 175 Value Destroyed (1159) 1159 Prototype IDs (2) 40 Alien Tech Used (0) 0 Bonus (0) 0 TOTAL SCORE: 2974 Bonus ------- None Cogmind --------- Core Integrity 0/550 Matter 315/350 Energy 100/100 System Corruption 0% Temperature Cool (18) Movement Treading (160) Location -8/Materials Parts ------- > --- POWER (1) -------- (None) > --- PROPULSION (4) --- Improved Treads Improved Treads Carbon-fiber Leg > --- UTILITY (4) ------ Small Matter Pod Targeting Computer Hacking Suite > --- WEAPON (2) ------- Mining Claw > --- INVENTORY (5) ---- Ion Engine Light Nuclear Core Faulty Heavy EM Shotgun Peak State ------------ > --- POWER ------------ Light Deuterium Engine > --- PROPULSION ------- Airjet Airjet Airjet Airjet > --- UTILITY ---------- Small Storage Unit Targeting Computer Improved Propulsion Shielding Hacking Suite > --- WEAPON ----------- Assault Rifle Autogun > --- INVENTORY -------- Ion Engine Aluminum Leg Improved Aluminum Leg Heat Sink Small Laser Light Assault Rifle Mining Laser Mining Claw [Rating: 26] Favorites ----------- Power Light Ion Engine Engine Light Ion Engine Power Core Light Nuclear Core Propulsion Aluminum Leg Treads Improved Treads Leg Aluminum Leg Wheel Wheel Hover Unit Airjet Utility Small Storage Unit Device Heat Sink Storage Small Storage Unit Processor Targeting Computer Hackware Hacking Suite Protection Propulsion Shielding Weapon Autogun Energy Gun Heavy EM Shotgun Energy Cannon Advanced Beam Cannon Ballistic Gun Autogun Launcher Improved Grenade Launcher Special Weapon Mining Laser Slashing Weapon Mining Claw Build | -11 -10 -9 -8 ------- Run | Yrd Mat Mat Mat Slots Evolved 4 | . . 2 2 Power . | . . . . Propulsion 2 | . . 1 1 Utility 2 | . . 1 1 Weapon . | . . . . Parts Attached 49 | 6 4 10 29 Power 7 | 1 . 2 4 Engine 4 | 1 . 2 1 Core 3 | . . . 3 Reactor . | . . . . Propulsion 19 | 2 . 4 13 Treads 2 | . . . 2 Leg 8 | 2 . 4 2 Wheel 1 | . . . 1 Hover 8 | . . . 8 Flight . | . . . . Utility 10 | 1 1 1 7 Device 2 | . . 1 1 Storage 3 | 1 . . 2 Processor 1 | . . . 1 Hackware 1 | . . . 1 Protection 3 | . 1 . 2 Artifact . | . . . . Weapon 13 | 2 3 3 5 Energy Gun 2 | . . . 2 Energy Cannon 1 | . . 1 . Ballistic Gun 7 | 2 2 2 1 Ballistic Cannon . | . . . . Launcher 1 | . . . 1 Special Weapon 1 | . 1 . . Impact Weapon . | . . . . Slashing Weapon 1 | . . . 1 Piercing Weapon . | . . . . Special Melee Weapon . | . . . . Unidentified Prototypes 2 | . . 1 1 Parts Lost 24 | . 1 3 20 Power 4 | . . 1 3 Propulsion 8 | . . 1 7 Utility 5 | . . 1 4 Weapon 7 | . 1 . 6 Highest Loss Streak 10 | . 1 2 10 To Critical Strikes . | . . . . Average Backups 5 | 2 4 7 5 Power 1 | . 1 1 1 Propulsion . | . . 1 1 Utility . | . . . . Weapon 3 | . 3 4 2 Tool/Special . | . . . . Unused Backups . | . . . . Power . | . . . . Propulsion . | . . . . Utility . | . . . . Weapon . | . . . . Tool/Special . | . . . . Average Slot Usage (%) 80 | . 96 72 78 Engine 7 | . 14 9 4 Core 1 | . . . 3 Treads 1 | . . . 1 Leg 17 | . 28 25 10 Hover 5 | . . . 9 Device 2 | . . . 4 Storage 9 | . 14 11 6 Processor 3 | . . . 6 Hackware 4 | . . . 8 Protection 5 | . 11 4 4 Energy Gun 1 | . . . 2 Energy Cannon 1 | . . 5 . Ballistic Gun 14 | . 26 14 9 Slashing Weapon 1 | . . . 2 Peak Build Rating 26 | 6 8 10 26 Average Rating 12 | 3 7 8 17 On Entrance 6 | . 6 8 10 Avg Prop Armor Cover (%) 10 | . . . 10 Naked Turns . | . . . . Heaviest Build 21 | 11 14 17 21 Greatest Support 46 | 20 20 30 46 Greatest Overweight (x) 6 | . . 1 6 Average Overweight (x) . | . . . . Largest Inventory Capacity 8 | 8 8 8 8 Average Capacity 7 | 6 8 8 6 Most Carried 8 | 5 6 8 8 Average Carried 5 | 2 4 7 4 Final Capacity 8 | 8 8 8 5 Final Carried 8 | 2 5 8 3 Class Distribution -------------------- 87% | Mutant 12% | Scavenger-Mutant Dominant Class ---------------- Mutant | -10/Materials Mutant | -9/Materials Mutant | -8/Materials Resources | -11 -10 -9 -8 ----------- Run | Yrd Mat Mat Mat Matter Collected 1150 | 260 3 224 663 Remotely . | . . . . Salvage Created 1025 | . 115 267 643 Parts 63 | . 8 25 30 Haulers Intercepted . | . . . . Recyclers Shooed . | . . . . Parts Field Recycled . | . . . . Retrieved Matter . | . . . . Parts Self-Destructed . | . . . . Prevented . | . . . . Parts Restored . | . . . . Kills | -11 -10 -9 -8 ------- Run | Yrd Mat Mat Mat Combat Hostiles Destroyed 28 | . 3 9 16 Melee 2 | . . . 2 Guns 12 | . 2 5 5 Cannons 4 | . . 4 . AOE 10 | . 1 . 9 Classes Destroyed 12 | . 4 2 6 Builder 1 | . . . 1 Tunneler 1 | . 1 . . Recycler 2 | . 1 . 1 Operator 1 | . . . 1 Watcher 2 | . 1 . 1 Swarmer 7 | . 3 4 . Grunt 12 | . . 4 8 Brawler 1 | . . . 1 Duelist 2 | . . 1 1 Sentry 4 | . . . 4 Hunter 1 | . . . 1 Heavy 1 | . . . 1 Best Kill Streak 9 | . 6 3 9 Combat Bots Only 8 | . 3 3 8 Max Kills in Single Turn 4 | . 4 1 2 Gunslinging 1 | . 1 . . Exploded 2 | . 1 . 2 Melee 1 | . . . 1 Uniques/NPCs Destroyed . | . . . . Combat | -11 -10 -9 -8 -------- Run | Yrd Mat Mat Mat Hostile Shots Fired 274 | . 12 82 180 Missed 71 | . 2 21 48 Hits 203 | . 10 61 132 Melee 6 | . . 5 1 Projectile 197 | . 10 56 131 Critical Strikes 8 | . . 1 7 Damage Taken 3561 | . 363 740 2458 Core 816 | . 7 258 551 Absorbed by Shields . | . . . . Redirected to Shielding 185 | . 34 17 134 Core Remaining (%) 77 | 100 97 35 . Volleys Fired 95 | . 6 33 56 Largest 2 | . 2 2 2 Hottest 91 | . 43 91 63 Shots Fired 149 | . 11 56 82 Gun 112 | . 11 33 68 Cannon 23 | . . 23 . Launcher 14 | . . . 14 Special . | . . . . Kinetic 108 | . 11 33 64 Thermal 27 | . . 23 4 Explosive 14 | . . . 14 Electromagnetic . | . . . . Robot Hit Streak 11 | . 2 8 11 Robot Miss Streak 5 | . 5 3 4 Penetration Max . | . . . . Secondary Targets 2 | . 1 . 1 Max Gunslinging Chain 1 | . 1 . 1 Shots Hit Robots 102 | . 2 35 65 Core Hits 63 | . 2 15 46 Critical Kills . | . . . . Critical Parts Destroyed . | . . . . Critical Strikes . | . . . . Melee Attacks 13 | . . . 13 Impact . | . . . . Slashing 13 | . . . 13 Piercing . | . . . . Sneak Attacks . | . . . . Combat Hostiles . | . . . . Follow-up Attacks . | . . . . Damage Inflicted 2990 | . 374 644 1972 Guns 938 | . 28 274 636 Cannons 350 | . . 350 . Explosions 1436 | . 346 . 1090 Melee 215 | . . . 215 Ramming 51 | . . 20 31 Kinetic 903 | . 28 274 601 Thermal 731 | . 346 350 35 Explosive 1090 | . . . 1090 Electromagnetic . | . . . . Impact . | . . . . Slashing 215 | . . . 215 Piercing . | . . . . Highest Corruption . | . . . . Average Corruption . | . . . . Corruption Purged . | . . . . Corruption Blocked . | . . . . Overload Shots . | . . . . Overflow Damage 221 | . 196 1 24 Projectiles 1 | . . 1 . Explosions 220 | . 196 . 24 Melee . | . . . . Knockbacks . | . . . . Impact . | . . . . Kinetic . | . . . . Secondary . | . . . . Self-Inflicted Damage 379 | . 285 . 94 Shots 6 | . 3 . 3 Rammed 5 | . . . 5 Targets Rammed 13 | . . 8 5 Kicked 8 | . . 8 . Crushed . | . . . . Highest Temperature 203 | . 26 203 29 Average Temperature 45 | . 5 68 8 Received Heat Transfer 1272 | . . 228 1044 Siege Activations . | . . . . Martial Activations . | . . . . Shielding Activations . | . . . . Robots Disrupted . | . . . . Combat Hostiles . | . . . . Robots Corrupted . | . . . . Combat Hostiles . | . . . . Parts Fried . | . . . . Impact Corruptions . | . . . . Robots Melted . | . . . . Combat Hostiles . | . . . . Parts Melted 2 | . 1 1 . Heat Transferred 954 | . 250 629 75 Parts Sabotaged . | . . . . Parts Stolen . | . . . . Parts Stripped . | . . . . Power Chain Reactions . | . . . . Alert | -11 -10 -9 -8 ------- Run | Yrd Mat Mat Mat Maximum Alert Level 1 | . . . 1 Low Security (%) 76 | 100 100 100 54 Level 1 23 | . . . 45 Level 2 . | . . . . Level 3 . | . . . . Level 4 . | . . . . Level 5 . | . . . . High Security . | . . . . Max Security . | . . . . Peak Influence 287 | . 160 155 287 Initial 52 | . . 50 52 Average 104 | . 45 105 136 Influence Increases 1043 | . 180 255 608 Destroy 0b10 Robot/C 560 | . 60 180 320 Destroy 0b10 Robot/NC 35 | . 15 . 20 Destroy Leader 144 | . 12 30 102 Successful Hack 6 | . . . 6 Disable Machine 105 | . 45 . 60 Destroy Structure 103 | . 48 . 55 Partial Spotted 15 | . . . 15 Lose Combat Pursuer 75 | . . 45 30 Influence Decreases 856 | . 60 250 546 Entered New Map 143 | . . 70 73 Time Decay 473 | . 50 150 273 Lost Part 240 | . 10 30 200 Squads Dispatched 5 | . . 1 4 Investigation 1 | . . . 1 Extermination . | . . . . Reinforcement 4 | . . 1 3 Assault . | . . . . Garrison . | . . . . Intercept . | . . . . Searches Triggered . | . . . . Construction Impeded . | . . . . Haulers Reinforced . | . . . . Active Scanning Responses . | . . . . Cargo Convoy Interrupts . | . . . . Stealth | -11 -10 -9 -8 --------- Run | Yrd Mat Mat Mat Distress Signals 2 | . . . 2 Communications Jammed . | . . . . Distress Signals . | . . . . Times Spotted 47 | . 5 14 28 Peak Tracking Total 11 | . 5 6 11 Tactical Retreats 4 | . . 2 2 Traps | -11 -10 -9 -8 ------- Run | Yrd Mat Mat Mat Traps Triggered 1 | . . . 1 Indirectly . | . . . . Trap Hack Attempts . | . . . . Triggered . | . . . . Disarmed . | . . . . Reprogrammed . | . . . . Reused . | . . . . Traps Extracted . | . . . . Installed . | . . . . Triggered . | . . . . Machines | -11 -10 -9 -8 ---------- Run | Yrd Mat Mat Mat Machines Disabled 7 | . 3 . 4 Max in Single Turn 3 | . 3 . 2 Machines Repaired . | . . . . Machines Dismantled . | . . . . Machines Sabotaged . | . . . . Overloaded Fab Kills . | . . . . Hacking | -11 -10 -9 -8 --------- Run | Yrd Mat Mat Mat Machines Accessed 4 | . 2 1 1 Terminals 4 | . 2 1 1 Fabricators . | . . . . Repair Stations . | . . . . Recycling Units . | . . . . Scanalyzers . | . . . . Garrison Access . | . . . . Total Hacks 9 | . 3 3 3 Successful 6 | . 3 2 1 Failed 3 | . . 1 2 Catastrophic . | . . . . Database Lockouts . | . . . . Manual . | . . . . Terminals 9 | . 3 3 3 Fabricators . | . . . . Repair Stations . | . . . . Recycling Units . | . . . . Scanalyzers . | . . . . Garrison Access . | . . . . Terminal Hacks 6 | . 3 2 1 Record 5 | . 3 2 . Recall Investigation 1 | . . . 1 Fabricator Hacks . | . . . . Repair Station Hacks . | . . . . Recycling Unit Hacks . | . . . . Scanalyzer . | . . . . Garrison Access Hacks . | . . . . Unauthorized Hacks . | . . . . Terminals . | . . . . Fabricators . | . . . . Repair Stations . | . . . . Recycling Units . | . . . . Scanalyzers . | . . . . Garrison Access . | . . . . Data Cores Recovered 1 | . . . 1 Used . | . . . . Hacking Detections 3 | . 1 1 1 Full Trace Events 1 | . . . 1 Feedback Events . | . . . . Feedback Blocked . | . . . . Robot Schematics Acquired . | . . . . Robots Built . | . . . . Authchips . | . . . . Time . | . . . . Total Robot Build Rating . | . . . . Part Schematics Acquired . | . . . . Parts Built . | . . . . Authchips . | . . . . Time . | . . . . Total Part Build Rating . | . . . . Part Studies Acquired . | . . . . Parts Repaired . | . . . . Time . | . . . . Parts Recycled . | . . . . Recycled Matter . | . . . . Retrieved Matter . | . . . . Retrieved Components . | . . . . Parts Scanalyzed . | . . . . Part Schematics Acquired . | . . . . Parts Damaged . | . . . . Bothacking | -11 -10 -9 -8 ------------ Run | Yrd Mat Mat Mat Used RIF Installer . | . . . . Robots Hacked . | . . . . Non-combat . | . . . . Combat . | . . . . Robot Hacks Applied . | . . . . Relay Couplers Released . | . . . . Fabnet Peak Effective % . | . . . . Robots Rewired . | . . . . Allies Hacked . | . . . . Hacks Repelled . | . . . . Allies | -11 -10 -9 -8 -------- Run | Yrd Mat Mat Mat Total Allies . | . . . . Largest Group . | . . . . Highest-Rated Group . | . . . . Highest-Rated Ally . | . . . . Total Orders . | . . . . Ally Attacks . | . . . . Total Damage . | . . . . Kills . | . . . . Allies Corrupted . | . . . . Allies Melted . | . . . . Intel | -11 -10 -9 -8 ------- Run | Yrd Mat Mat Mat Active Infowar (turns) . | . . . . Robot Analysis Total . | . . . . Derelict Logs Recovered . | . . . . Drone Launches . | . . . . Drone Recoveries . | . . . . Exploration | -11 -10 -9 -8 ------------- Run | Yrd Mat Mat Mat Turns Passed 1254 | 58 242 317 637 Spaces Moved 820 | 42 182 172 424 Core 15 | 6 . . 9 Treads 15 | . . . 15 Legs 590 | 36 182 172 200 Wheels 29 | . . . 29 Hover 171 | . . . 171 Flight . | . . . . Fastest Speed 48 | 50 120 120 48 Average Speed 107 | 110 120 120 96 Slowest Speed 350 | 120 120 190 350 Overloaded Moves . | . . . . Propulsion Burnouts . | . . . . Robots Hopped . | . . . . Potential Cave-ins . | . . . . Cave-ins Triggered . | . . . . Exploration Rate (%) 25 | 3 39 19 42 Regions Visited 3 Branch Regions . Pre-discovered Areas . | . . . . Known Exits Taken . | . . . . Unknown Exits Taken 3 | 1 1 1 . Scrap Searched . | . . . . Spaces Dug . | . . . . Terrain Destroyed 113 | . 55 . 58 Melee . | . . . . Projectile . | . . . . AOE 113 | . 55 . 58 Terrain Rammed . | . . . . Walls Destroyed . | . . . . Machines Disabled . | . . . . Actions | -11 -10 -9 -8 --------- Run | Yrd Mat Mat Mat Total 1022 | 52 195 227 548 Wait . | . . . . Move 817 | 41 181 171 424 Hop . | . . . . Pick Up 11 | 5 3 1 2 Fast Attach 32 | 3 1 5 23 Attach 17 | 3 2 2 10 Detach 4 | . 1 1 2 Swap 8 | . 1 4 3 Drop 12 | . . 2 10 Fire 95 | . 6 33 56 Melee 13 | . . . 13 Ram 5 | . . . 5 Kick 8 | . . 8 . Crush . | . . . . Escape Stasis . | . . . . Rewire . | . . . . Trap . | . . . . Miscellaneous . | . . . . Route ------- -11/Scrapyard -10/Materials -9/Materials -8/Materials History --------- Turn | Location | Event 5 | -11/Scrapyard | Discovered new exit (range 15) 59 | -11/Scrapyard | Entered Materials 283 | -10/Materials | Discovered new exit (range 16) 301 | -10/Materials | Entered another Materials area 301 | -9/Materials | Evolved 2 slots: Propulsion x1, Utility x1 302 | -9/Materials | Build established: Mutant 422 | -9/Materials | Core integrity fell below 50% 596 | -9/Materials | Discovered new exit (range 15) 618 | -9/Materials | Entered another Materials area 618 | -8/Materials | Evolved 2 slots: Propulsion x1, Utility x1 936 | -8/Materials | Core integrity fell below 50% 958 | -8/Materials | Destroyed 8 combat bots 966 | -8/Materials | Lost 10 parts (1p4n2u3w) 1105 | -8/Materials | Lost 6 parts (1p2n1u2w) 1234 | -8/Materials | Core integrity fell below 20% 1255 | -8/Materials | Destroyed by G-47 Trooper with Particle Gun Last Messages --------------- 01158_ K-01 Serf collects debris. 01159_ Penetrated by Slug. 01162_ K-01 Serf collects debris. 01162_ Slug penetrates Door. 01166_ K-01 Serf collects debris. 01169_ Acquired 61 matter. 01170_ Penetrated by Slug. 01170_ H-55 Commando Assault Rifle ripped off. 01173_ H-55 Commando destroyed. 01181_ Acquired Carbon-fiber Leg. 01183_ Acquired 10 matter. 01183_ U-05 Engineer builds a Door. 01192_ Acquired 2 matter. 01196_ Hrd. Medium Armor Plating destroyed. 01196_ Critical hit (Burn: +37). 01225_ Acquired Imp. Treads. 01228_ Critical hit (Burn: +37). 01245_ Lgt. Nuclear Core destroyed. 01249_ Wheel destroyed. 01251_ Assault Rifle destroyed. Map ----- +----------------------------------------------------+ | ??#### ##+##### #?????????? | | ### ### #?????????? | | # ##########?????????? | | # ! ## / #??????????? | | " ! + %| ## "" #??????????? | | " ! # ! # T" #??######### | | # [ ## "" #??# ! # | | ####### ## #??# """ # | | ###### #! #??# """ # | | # ##+###"#### """ # | | """ # [ %# """ # | | """ + | + """ # | | """ # # # | | # ######## ## " " # | | % # # # ## "R" # | | ##+##### ####### ## ## """ # | | # # # ### ## # | | # / + ""#?# ########## | | # #" # ""#?# #????????? | | # #% # """#?# #????????? | | # #"%!# """#?# #?######## | | # # # #?# #?# # | | ######## #"######?# #?# # | | ???????# ########## ### " # | | ######## # """# | | """ #@ """# | | % "T" #gg """# | | %""" !!! """ + g "" # | | """ !!! """ # """# | | [// """ !!! """ # ""# | | [/ """ """ # """# | | [/ ! # " # | | # # | | # # | | #### ######## | | ^ #??# #??????? | | #??# #??????? | | #??# #??????? | | #??####+##########??????? | | #???????????????????????? | | #???????????????????????? | | #???????????????????????? | | #???????????????????????? | | ##+#???????????????????????? | | #??????????????????????????? | | #??????????????????????????? | | #??????????????????????????? | | ???????????????????????????? | | ???????????????????????????????? | | ???????????????????????????????? | +----------------------------------------------------+ Best States ------------- Heat Dissipation 41 Energy Generation 14 Energy Capacity 340 Matter Stores 350 Matter Capacity 350 Sight Range 16 Terrain Scan Density 10 Additional Mass Support 9 Armor Coverage 225 Propulsion Shielding 66 Evasion (%) 55 Targeting Accuracy 5 Recoil Reduction 2 Offensive Hacking 10 Item Schematics ----------------- None Robot Schematics ------------------ None Fabricated ------------ Nothing Repaired ---------- Nothing Studied --------- None Alien Tech Used ----------------- None Achievements -------------- Hydra Resistances Are Futile Challenges ------------ None Game ------ Seed AntimatterRemoteSlayer Manual? 0 Play Time 00:24:49 Cumulative 18.2 hours Start 2026.02.17 @ 14:05:23 End 2026.02.17 @ 14:44:41 Sessions 1 Manual Loads 0 Difficulty Rogue Special Mode None Game No. 27 Rogue 27 Adventurer 0 Explorer 0 Win Type - Total 0 Types 0/0/0/0/0/0/0/0/0/0 Lore% 2 Gallery% 13 Achievement% 7 Wizard Run 0 Options --------- Layout 1 ASCII 0 Keyboard 0 Movement Vi Keybinds 0 Fullscreen 1 Font 24/Smallcaps Map View 50x35 Zoom Use 0% Tactical HUD 1 Map Filters NONE Filters NONE Steam 1 RUN: d29a2ea5-43a9-49d4-9e68-74980f9bd98c